[Event "87th Spanish Championship 2022"]
[Site "Linares"]
[Date "2022.08.11"]
[Round "1.6"]
[White "Cuenca Jimenez, Jose Fernando"]
[Black "Ramirez Diaz, Jose Ramon"]
[Result "1-0"]
[ECO "A10"]
[WhiteElo "2552"]
[BlackElo "2193"]
[Annotator "TA"]
[PlyCount "73"]
[EventDate "2022.08.11"]
[EventType "swiss"]
[EventCountry "ESP"]
[SourceTitle "playchess.com"]
[Source "ChessBase"]
[SourceQuality "1"]
[TimeControl "5400+30"]

{[%evp 9,73,7,4,4,7,0,25,0,16,0,18,20,14,17,27,0,-2,-10,0,0,23,40,25,25,25,24,47,41,51,64,60,52,421,404,422,391,423,425,421,422,416,317,547,547,507,432,432,436,520,512,795,812,768,665,732,664,661,658,657,646,608,600,572,529,29979,29980]} 1. c4 {[%emt 0:00:12]} g6 {[%emt 0:00:23]} 2. Nc3 {[%emt 0:00:12]} c5 {[%emt 0:02:16]} 3. d4 {[%emt 0:04:59]} cxd4 {[%emt 0:02:16]} 4. Qxd4 {[%emt 0:00:04]} Nf6 {[%emt 0:00:07]} 5. Bg5 {[%emt 0:00:29]} Nc6 {[%emt 0:04:50]} 6. Qd2 {[%emt 0:00:12] A34: Symmetrical English: 2 Nc3, lines with ...d5.} Bg7 {[%emt 0:02:28]} 7. e4 {[%emt 0:00:29]} d6 {[%emt 0:01:47]} 8. Be2 {[%emt 0:01:35] White has an edge.} Be6 {[%emt 0:02:42] [#]} 9. Rc1 $146 {[%emt 0:02:51]} ({Predecessor:} 9. h4 Ne5 10. b3 Nc6 11. Rc1 h6 12. Be3 Ng4 13. Bxg4 Bxg4 14. f3 Be6 15. Nge2 {1-0 (28) Szijjarto,L (1955)-Csiszar,V (1999) Hungary 2014}) 9... O-O {[%emt 0:06:00]} 10. Nf3 {[%emt 0:05:52]} Qa5 {[%emt 0:06:23]} 11. O-O {[%emt 0:04:09]} Rfc8 {[%emt 0:06:20]} 12. Bh6 {[%emt 0:03:15]} a6 {[%emt 0:09:20][%cal Ob7b5]} 13. Bxg7 {[%emt 0:02:29]} Kxg7 {[%emt 0:00:05]} 14. b3 {[%emt 0:06:34]} b5 {[%emt 0:11:01]} 15. cxb5 {[%emt 0:05:12]} axb5 {[%emt 0:00:06]} 16. Bxb5 {[%emt 0:01:43]} Nxe4 {[%emt 0:00:38]} 17. Qb2 {[%emt 0:03:21]} Nxc3 {[%emt 0:16:38]} 18. Rxc3 {[%emt 0:03:10]} Ne5 {[%emt 0:00:06]} 19. Rxc8 {[%emt 0:01:59]} Rxc8 {[%emt 0:00:34]} 20. Nxe5 {[%emt 0:01:47]} Qxb5 {[%emt 0:00:36][%mdl 8192] [#] This costs Black the game.} ({Better is} 20... dxe5 $14 21. Qxe5+ Kg8) 21. Nc6+ $1 $18 {[%emt 0:00:53]} f6 {[%emt 0:01:00]} 22. Na7 {[%emt 0:00:43]} Qd5 {[%emt 0:03:24]} 23. Nxc8 {[%emt 0:00:25]} Bxc8 {[%emt 0:00:03][%mdl 4096] Endgame KQR-KQB} 24. Qe2 {[%emt 0:01:37]} Kf8 {[%emt 0:04:28]} 25. Qc4 {[%emt 0:01:51]} Qf5 {[%emt 0:02:28]} (25... Qxc4 26. bxc4 Ke8) 26. Re1 {[%emt 0:01:38]} Bd7 {[%emt 0:01:28]} 27. Qe4 {[%emt 0:00:49]} Qxe4 {[%emt 0:00:51]} 28. Rxe4 {[%emt 0:00:05] KR-KB} e5 {[%emt 0:00:05]} 29. a4 {[%emt 0:01:04][%cal Ba2a4,Ba4a5][%mdl 32]} d5 {[%emt 0:00:10]} (29... Ke8 $142 30. a5 Bc8) 30. Rb4 {[%emt 0:00:09]} Ke7 {[%emt 0:00:10]} 31. a5 {[%emt 0:00:51]} Kd6 {[%emt 0:00:39]} 32. Rb6+ {[%emt 0:00:16]} Bc6 {[%emt 0:00:11]} 33. b4 {[%emt 0:00:03] [#] b5 would kill now.} Kc7 {[%emt 0:00:21]} 34. b5 {[%emt 0:01:03]} Bd7 {[%emt 0:00:05]} 35. Rxf6 {[%emt 0:00:14] Black must now prevent b6+.} Bxb5 {[%emt 0:00:04]} 36. f3 {[%emt 0:00:09]} Kb7 {[%emt 0:01:01]} 37. Rb6+ {[%emt 0:00:06] Weighted Error Value: White=0.18 (very precise) /Black=0.69} 1-0

[Event "87th Spanish Championship 2022"]
[Site "Linares"]
[Date "2022.08.11"]
[Round "1.7"]
[White "Saenz Narciso, Miguel Angel"]
[Black "Asis Gargatagli, Hipolito"]
[Result "0-1"]
[ECO "B91"]
[WhiteElo "2222"]
[BlackElo "2514"]
[Annotator "TA"]
[PlyCount "74"]
[EventDate "2022.08.11"]
[EventType "swiss"]
[EventCountry "ESP"]
[SourceTitle "playchess.com"]
[Source "ChessBase"]
[SourceQuality "1"]
[TimeControl "5400+30"]

{[%evp 26,74,-36,-25,-49,-37,-46,-50,-7,-15,-10,-16,-8,-11,-14,-16,0,-18,4,16,23,10,20,18,69,60,57,55,64,23,24,17,19,7,0,-271,-293,-763,-485,-1139,-1177,-1115,-919,-2013,-1943,-29986,-29987,-29988,-29989,-29989,-12839]} 1. e4 {[%emt 0:00:06]} c5 {[%emt 0:00:19]} 2. Nf3 {[%emt 0:00:11]} d6 {[%emt 0:00:05]} 3. d4 {[%emt 0:00:10]} cxd4 {[%emt 0:00:06]} 4. Nxd4 {[%emt 0:00:05]} Nf6 {[%emt 0:00:10]} 5. Nc3 {[%emt 0:00:07]} a6 {[%emt 0:00:06]} 6. g3 {[%emt 0:00:13]} g6 {[%emt 0:01:29]} 7. Bg2 {[%emt 0:00:11]} Bg7 {[%emt 0:00:24]} 8. O-O {[%emt 0:00:30]} O-O {[%emt 0:00:11]} 9. h3 {[%emt 0:00:48]} Nc6 {[%emt 0:00:40]} 10. Nde2 {[%emt 0:00:16]} Rb8 {[%emt 0:01:05]} 11. a4 {[%emt 0:00:09]} b5 {[%emt 0:01:56]} 12. axb5 {[%emt 0:00:06]} axb5 {[%emt 0:00:05]} 13. Be3 {[%emt 0:03:14]} b4 {[%emt 0:04:04]} 14. Nd5 {[%emt 0:00:20]} Nd7 {[%emt 0:00:12] B70: Sicilian Dragon: 6 g3 and 6 Be2 (without a later Be3).} 15. Ra2 {[%emt 0:07:53]} e6 {[%emt 0:22:46]} 16. Ndf4 {[%emt 0:01:33]} Nf6 {[%emt 0:01:43] Black is slightly better.} (16... b3 $5 17. cxb3 Nc5 $11) 17. b3 {[%emt 0:13:41]} Bb7 {[%emt 0:23:58]} 18. g4 {[%emt 0:09:35][%cal Bg3g4,Bg4g5][%mdl 32]} Qc7 {[%emt 0:02:57] [#]} 19. Nd3 $146 {[%emt 0:05:01]} ({Predecessor:} 19. g5 Nd7 20. Qd2 Rfd8 21. Rd1 Nc5 22. Nd3 Ne5 23. Nxc5 dxc5 24. Qe1 Rxd1 25. Qxd1 {0-1 (49) Cabrilo,G (2493)-Damljanovic,B (2579) Budva 2004}) 19... Rfd8 {[%emt 0:03:29]} 20. g5 {[%emt 0:02:40]} Nd7 {[%emt 0:01:35]} 21. Qe1 {[%emt 0:01:39]} Bc8 {[%emt 0:09:43]} 22. f4 {[%emt 0:06:01]} Rb5 {[%emt 0:01:49][%cal Bb8b5,Bb5f5,Bf5f8][%mdl 32] Against f5} 23. Qf2 {[%emt 0:01:52]} Bb7 {[%emt 0:07:49]} 24. h4 {[%emt 0:03:29][%cal Oh4h5]} f5 {[%emt 0:00:11]} ({Black should play} 24... h5 $11) 25. exf5 $14 {[%emt 0:03:28]} Rxf5 {[%emt 0:00:05]} 26. Bh3 {[%emt 0:02:28]} Rff8 $1 {[%emt 0:00:18]} 27. Bxe6+ {[%emt 0:00:39]} (27. h5 $5 {[%cal Rh3e6]} Rde8 28. h6 $14) 27... Kh8 {[%emt 0:00:03]} 28. h5 {[%emt 0:03:06] Hoping for hxg6.} Rde8 {[%emt 0:01:45]} 29. Bd5 {[%emt 0:04:25] Strongly threatening hxg6.} gxh5 {[%emt 0:03:44][%cal Oc6e5]} 30. f5 $2 {[%emt 0:01:49][%mdl 8192]} (30. Bf3 $11 {and White has nothing to worry.}) 30... Ne7 $1 $19 {[%emt 0:01:17][%csl LRd5,LRf5]} 31. Be6 {[%emt 0:03:47]} (31. Bxb7 Nxf5 32. Ba7 Qxb7 33. Ndf4) 31... Qc6 {[%emt 0:01:42][%csl Gb7][%cal Rc6h1]} 32. Kh2 {[%emt 0:00:44] [#] Prevents Qh1+.} (32. Ng3 $142 h4 33. Nxb4 hxg3 34. Nxc6 gxf2+ 35. Bxf2 Bxc6 36. Bxd7 Bxd7 37. f6) 32... Nxf5 $1 {[%emt 0:00:23][%mdl 512]} 33. Bxf5 {[%emt 0:00:36] [#]} Rxe3 $1 {[%emt 0:00:51][%mdl 512]} 34. Ng3 {[%emt 0:01:16] [#]} (34. Ra6 Qd5) 34... Ne5 $1 {[%emt 0:01:12][%cal Of8f5] ( -> ...Rxf5!)} 35. Nxb4 {[%emt 0:03:07]} (35. c4 Rxd3) 35... Qc3 {[%emt 0:02:00] Black mates.} 36. Kh3 {[%emt 0:03:51]} h4 {[%emt 0:01:31]} 37. Kxh4 {[%emt 0:00:11]} Nf3+ {[%emt 0:00:15] Weighted Error Value: White=1.08/Black=0.26 (precise)} (37... Qd4+ $142 38. Kh3 Ng6 39. Nd5 Qh4+ 40. Kg2 Bxd5+ 41. Qf3 Nf4+ 42. Kf2 Rxf3+ 43. Ke1 Bc3+ 44. Kd1 Rxf1+ 45. Nxf1 Qe1#) 0-1

[Event "87th Spanish Championship 2022"]
[Site "Linares"]
[Date "2022.08.11"]
[Round "1.8"]
[White "Garriga Cazorla, Pere"]
[Black "Martinez-Conde Hernandez, Carlos"]
[Result "1-0"]
[ECO "E71"]
[WhiteElo "2505"]
[BlackElo "2205"]
[Annotator "TA"]
[PlyCount "81"]
[EventDate "2022.08.11"]
[EventType "swiss"]
[EventCountry "ESP"]
[SourceTitle "playchess.com"]
[Source "ChessBase"]
[SourceQuality "1"]
[TimeControl "5400+30"]

{[%evp 13,81,31,43,46,47,50,70,55,45,60,132,160,157,144,131,131,175,144,156,150,164,42,135,135,153,103,200,207,312,164,153,159,156,165,158,104,265,143,362,364,358,352,439,421,446,450,437,415,460,433,543,516,752,752,708,732,1722,1667,1733,1730,2307,2164,5409,5021,29979,29979,29986,29987,29983,29983]} 1. d4 {[%emt 0:01:10]} Nf6 {[%emt 0:00:16]} 2. c4 {[%emt 0:00:07]} g6 {[%emt 0:00:07]} 3. Nc3 {[%emt 0:00:39]} Bg7 {[%emt 0:00:17]} 4. e4 {[%emt 0:00:07]} d6 {[%emt 0:00:08]} 5. h3 {[%emt 0:00:05]} O-O {[%emt 0:00:12]} 6. Be3 {[%emt 0:00:04]} e5 {[%emt 0:00:50]} 7. d5 {[%emt 0:00:04]} a5 {[%emt 0:00:24]} 8. g4 {[%emt 0:00:05] E71: King's Indian: 4 e4 d6 5 h3.} Na6 {[%emt 0:01:10]} 9. Nge2 {[%emt 0:00:06]} Nd7 {[%emt 0:06:28]} 10. h4 {[%emt 0:11:21][%cal Bh3h4,Bh4h5][%mdl 32] White is slightly better.} Ndc5 {[%emt 0:11:58]} 11. Ng3 {[%emt 0:01:06] [#]} Qe8 $146 {[%emt 0:01:42]} (11... c6 $14) ({Predecessor:} 11... c6 12. Be2 cxd5 13. cxd5 Bd7 14. h5 a4 15. Qd2 Rb8 16. Kf1 b5 17. Kg2 b4 {1-0 (78) Iturrizaga Bonelli,E (2637)-Amonatov,F (2624) Bhubaneswar 2019}) 12. h5 $16 {[%emt 0:04:59]} Bd7 {[%emt 0:04:49]} 13. f3 {[%emt 0:05:51]} Qe7 {[%emt 0:19:51]} 14. Qd2 {[%emt 0:15:17]} Rfb8 {[%emt 0:02:26]} 15. O-O-O {[%emt 0:26:34]} Na4 {[%emt 0:12:57]} 16. hxg6 {[%emt 0:03:10]} fxg6 {[%emt 0:00:27]} 17. Bg5 {[%emt 0:06:29]} ({White should try} 17. Qh2 $18 Kf7 18. Nb5 (18. Qxh7 $2 Rh8 $19)) 17... Qf7 {[%emt 0:08:49]} (17... Bf6 $14 18. Be3 Nxc3 19. Qxc3 Rf8) 18. Nb5 {[%emt 0:02:51]} Bf8 {[%emt 0:05:53]} (18... Qxf3 $2 19. Qh2 Qxh1 20. Qxh1 $18) 19. Be2 {[%emt 0:08:58]} (19. Qxa5 c6 20. Qxa4 cxb5 $17) 19... N4c5 {[%emt 0:05:40]} (19... Be7 $16) 20. Kb1 {[%emt 0:02:12]} ({But not} 20. Qxa5 $6 Rc8) 20... Nb4 {[%emt 0:08:22]} (20... c6 $142) 21. Nxc7 {[%emt 0:02:29]} (21. Rh2 $142) 21... Ba4 $18 {[%emt 0:00:06] Hoping for ...Bc2+.} 22. Nxa8 {[%emt 0:00:20] Really sharp! Active counter play!} Bc2+ {[%emt 0:01:19]} 23. Ka1 {[%emt 0:02:44]} Rxa8 {[%emt 0:02:22] [#]} 24. Be3 $1 {[%emt 0:01:46]} Nb3+ {[%emt 0:02:12]} (24... Qe8 25. b3) 25. axb3 {[%emt 0:00:07] aiming for Rc1.} a4 $2 {[%emt 0:00:03] Loses the game.} (25... Qe8 $16 26. Qc3 a4 27. Qxb4 axb3+ 28. Qa3 Ra4) 26. Qxb4 {[%emt 0:00:47][%cal Ob4a3] Black must now prevent Qa3!} axb3+ {[%emt 0:00:05] [#]} 27. Qa3 $3 {[%emt 0:00:06]} Rxa3+ {[%emt 0:00:05]} (27... Qe8 28. Rc1) 28. bxa3 {[%emt 0:00:03]} Qc7 {[%emt 0:00:59] [#]} 29. Kb2 $1 {[%emt 0:00:27]} Bxd1 {[%emt 0:00:39]} 30. Rxd1 {[%emt 0:00:09]} ({Not} 30. Bxd1 Qxc4 31. Bxb3 Qd3 $14) 30... Qd8 {[%emt 0:00:22]} 31. Kxb3 {[%emt 0:01:03]} Qh4 {[%emt 0:00:13]} 32. Nf1 {[%emt 0:00:52]} Bh6 {[%emt 0:00:40]} 33. Bxh6 {[%emt 0:00:25]} Qxh6 {[%emt 0:00:02]} 34. c5 {[%emt 0:00:12]} Kf7 {[%emt 0:00:38]} 35. c6 {[%emt 0:01:05]} bxc6 {[%emt 0:00:02]} 36. dxc6 {[%emt 0:00:05] Threatens to win with c7.} Ke7 {[%emt 0:00:05]} 37. Kb2 {[%emt 0:01:32]} Kd8 {[%emt 0:00:19]} 38. Rc1 {[%emt 0:00:36] Threatening mate with c7+.} Kc7 {[%emt 0:00:05]} 39. Rc3 {[%emt 0:00:09] White mates.} Qf8 {[%emt 0:01:52]} 40. Ne3 {[%emt 0:00:14]} Qb8+ {[%emt 0:00:30]} 41. Ka2 {[%emt 0:00:12] Weighted Error Value: White=0.21 (precise) /Black=0.73} 1-0

[Event "87th Spanish Championship 2022"]
[Site "Linares"]
[Date "2022.08.11"]
[Round "1.9"]
[White "Jimenez Bernal, Francisco"]
[Black "Lopez Martinez, Josep Manuel"]
[Result "0-1"]
[ECO "D31"]
[WhiteElo "2149"]
[BlackElo "2486"]
[Annotator "TA"]
[PlyCount "104"]
[EventDate "2022.08.11"]
[EventType "swiss"]
[EventCountry "ESP"]
[SourceTitle "playchess.com"]
[Source "ChessBase"]
[SourceQuality "1"]
[TimeControl "5400+30"]

{[%evp 9,104,40,32,22,47,45,61,47,47,34,55,71,71,62,96,25,64,38,46,28,50,35,44,8,9,0,0,0,0,14,8,0,0,-47,0,0,0,-32,-34,-43,-28,-21,-48,-56,-56,-55,-39,-61,-32,-126,-108,-101,-99,-178,-175,-168,-164,-166,-144,-162,-155,-152,-108,-179,-102,-111,-100,-120,-115,-125,-18,-29,-18,-94,-78,-106,-102,-153,-156,-170,-167,-174,-70,-811,-704,-491,-491,-491,-489,-806,-773,-29972,-29968,-29980,-29979,-2263,-1956]} 1. d4 {[%emt 0:01:30]} d5 {[%emt 0:00:57]} 2. c4 {[%emt 0:00:17]} e6 {[%emt 0:00:12]} 3. Nc3 {[%emt 0:00:38]} c6 {[%emt 0:00:37]} 4. e4 {[%emt 0:01:26]} Bb4 {[%emt 0:00:41]} 5. cxd5 {[%emt 0:00:57]} exd5 {[%emt 0:00:13]} 6. e5 {[%emt 0:00:35] D31: Queen's Gambit Declined: Semi-Slav without ...Nf6 (+ Marshall Gambit and Noteboom) and Exchange Variation lines without ...Nf6.} Ne7 {[%emt 0:01:31]} 7. Nf3 {[%emt 0:01:05]} Bf5 {[%emt 0:03:47]} 8. Bd3 {[%emt 0:01:52] White is slightly better.} Nd7 {[%emt 0:06:31]} 9. O-O {[%emt 0:01:06]} Bxd3 {[%emt 0:11:47]} 10. Qxd3 {[%emt 0:00:07] [#]} Nf8 $146 {[%emt 0:01:15]} ({Predecessor:} 10... O-O 11. Ng5 Ng6 12. f4 h6 13. Nxf7 Kxf7 14. Qf5+ Nf6 15. e6+ Kg8 16. Qxg6 Bxc3 17. bxc3 {1-0 (30) Ryder,A (1933)-Galerne,R (1944) ICCF email 2009}) 11. Ne2 {[%emt 0:01:46]} Ne6 {[%emt 0:02:24]} 12. Bg5 {[%emt 0:18:05]} (12. Nh4 $16) 12... h6 {[%emt 0:08:57]} 13. Bh4 {[%emt 0:00:27]} Qd7 {[%emt 0:06:50]} 14. a3 {[%emt 0:04:17]} Ba5 {[%emt 0:00:10]} 15. Bxe7 {[%emt 0:00:30]} Qxe7 {[%emt 0:00:17]} 16. Ng3 {[%emt 0:01:14]} g6 {[%emt 0:00:39]} 17. h4 {[%emt 0:00:19]} Bb6 {[%emt 0:03:21]} 18. b4 {[%emt 0:03:40]} a6 {[%emt 0:09:19]} 19. a4 {[%emt 0:10:06]} h5 {[%emt 0:00:54]} (19... Qxb4 20. Rab1 Qa5 21. h5 (21. Qb3 Bxd4 22. h5 Qc7 $11) 21... gxh5 22. Nf5 $18) 20. Rfd1 {[%emt 0:03:55]} O-O {[%emt 0:02:48]} 21. Qb3 {[%emt 0:02:00]} (21. Ne2 $11) 21... Kg7 {[%emt 0:02:01]} (21... f6 $15 {was preferrable.} 22. Qb1 Qg7) 22. Ne2 $11 {[%emt 0:06:37]} Rad8 {[%emt 0:08:15]} 23. b5 {[%emt 0:07:44]} axb5 {[%emt 0:00:08]} 24. axb5 {[%emt 0:00:05]} c5 {[%emt 0:00:05]} 25. dxc5 {[%emt 0:00:44]} Nxc5 {[%emt 0:00:23]} 26. Qb2 {[%emt 0:02:03]} Ne4 $1 {[%emt 0:01:40]} 27. Ned4 {[%emt 0:01:07]} Kg8 {[%emt 0:04:59]} 28. g3 {[%emt 0:01:27]} Rc8 {[%emt 0:06:02]} 29. Qa3 {[%emt 0:07:59]} ({White should play} 29. Rdc1 $15) 29... Qxa3 {[%emt 0:00:58]} 30. Rxa3 {[%emt 0:00:03]} Rfe8 {[%emt 0:00:20]} 31. Rad3 {[%emt 0:01:41]} (31. Rdd3 $17) 31... Ra8 $1 $19 {[%emt 0:00:44][%cal Bc8a8,Ba8a2,Ba2b2,Bb2b3][%mdl 32] Threatens to win with ...Ra2.} 32. Kg2 {[%emt 0:06:12]} Ra2 {[%emt 0:01:20]} 33. Rf1 {[%emt 0:00:06]} Rb2 {[%emt 0:04:20]} 34. Rb3 {[%emt 0:04:28]} Rxb3 {[%emt 0:01:16]} 35. Nxb3 {[%emt 0:00:01] [#] Pair of Knights!} Rc8 $1 {[%emt 0:00:15] Black is more active.} 36. Nfd4 {[%emt 0:03:23]} (36. Nbd4 $17) 36... Rc4 {[%emt 0:01:05]} (36... Rc3 $19 {Hoping for ...Rd3.} 37. Re1 {[#]} Nxf2 $1 {[%mdl 512]}) 37. Rd1 $17 {[%emt 0:00:28]} Rb4 {[%emt 0:00:13][%cal Oe4f2]} 38. Rd3 {[%emt 0:02:15]} Kf8 {[%emt 0:02:04]} 39. f3 {[%emt 0:05:22]} Nc5 {[%emt 0:00:19]} (39... Bxd4 $17 40. Nxd4 Rb2+ 41. Kg1 Nxg3) 40. Nxc5 $11 {[%emt 0:00:03]} Bxc5 {[%emt 0:00:07][%mdl 4096] Endgame KRB-KRN} 41. Nb3 {[%emt 0:00:43]} (41. Ne2 $1 $11) 41... Bb6 $17 {[%emt 0:00:22]} ({But not} 41... Rxb5 $6 42. Rxd5 Rxb3 43. Rxc5 $11) 42. f4 {[%emt 0:00:32]} Rxb5 {[%emt 0:00:44]} 43. Kf3 {[%emt 0:01:44]} ({White should try} 43. Nd2) 43... Ke7 {[%emt 0:00:40]} 44. g4 {[%emt 0:00:09]} Ke6 {[%emt 0:01:17]} 45. Nd2 {[%emt 0:01:16]} Rb2 {[%emt 0:02:05]} (45... Bc5 $19 {Strongly threatening ...Rb2.} 46. Kg3 hxg4 47. Kxg4 d4) 46. Rb3 $2 {[%emt 0:00:43][%mdl 8192] White does not recover from this.} (46. Kg3 $15) 46... Rxb3+ {[%emt 0:00:28]} 47. Nxb3 {[%emt 0:00:02]} hxg4+ {[%emt 0:00:14]} 48. Kxg4 $19 {[%emt 0:00:02] KB-KN} d4 {[%emt 0:01:06][%cal Bd5d4,Bd4d3][%mdl 32]} 49. Nc1 {[%emt 0:00:35]} (49. Nd2 $142 Bd8 50. Nf3) 49... Kd5 {[%emt 0:00:18] And now ...Kc4 would win.} 50. h5 {[%emt 0:01:16]} gxh5+ {[%emt 0:00:17]} 51. Kxh5 {[%emt 0:00:08]} Ke4 {[%emt 0:00:11]} 52. Kg4 {[%emt 0:00:11]} d3 {[%emt 0:00:18] Weighted Error Value: White=0.56/Black=0.15 (very precise)} 0-1

[Event "87th Spanish Championship 2022"]
[Site "Linares"]
[Date "2022.08.11"]
[Round "1.10"]
[White "Gines Esteo, Pedro Antonio"]
[Black "Bermudez Ureba, Juan Diego"]
[Result "1-0"]
[ECO "A05"]
[WhiteElo "2455"]
[BlackElo "2198"]
[Annotator "TA"]
[PlyCount "33"]
[EventDate "2022.08.11"]
[EventType "swiss"]
[EventCountry "ESP"]
[SourceTitle "playchess.com"]
[Source "ChessBase"]
[SourceQuality "1"]
[TimeControl "5400+30"]

{[%evp 14,33,25,27,23,7,9,4,8,0,50,58,83,23,33,20,16,8,11,4,328,321]} 1. Nf3 {[%emt 0:00:06]} Nf6 {[%emt 0:00:20]} 2. g3 {[%emt 0:00:08]} b6 {[%emt 0:00:24]} 3. Bg2 {[%emt 0:00:06]} Bb7 {[%emt 0:00:02]} 4. O-O {[%emt 0:01:03]} e6 {[%emt 0:00:33]} 5. c4 {[%emt 0:00:38]} c5 {[%emt 0:00:20]} 6. d4 {[%emt 0:02:01]} cxd4 {[%emt 0:00:05]} 7. Qxd4 {[%emt 0:00:06]} Nc6 {[%emt 0:00:15]} 8. Qf4 {[%emt 0:11:25]} Ne7 {[%emt 0:00:04] The old main line. A30: Symmetrical English: Double Fianchetto and Hedgehog.} 9. Nc3 {[%emt 0:03:07]} Ng6 {[%emt 0:00:07]} 10. Qd4 {[%emt 0:03:26]} Bc5 {[%emt 0:00:51] The position is equal.} 11. Qd3 {[%emt 0:06:47]} d5 {[%emt 0:02:23]} (11... O-O $11) 12. cxd5 $14 {[%emt 0:08:14]} Nxd5 {[%emt 0:00:37] [#]} 13. h4 $146 {[%emt 0:16:35]} (13. Qb5+ $1 $16 Kf8 14. Rd1) ({Predecessor:} 13. Qb5+ Qd7 14. Qxd7+ Kxd7 15. Rd1 Ke7 16. Ne4 Rhc8 17. Nxc5 Rxc5 18. b3 Nc3 19. Rd2 {1-0 (41) L'Ami,E (2592)-Huschenbeth,N (2510) Germany 2011}) 13... Nxc3 $11 {[%emt 0:34:13]} 14. Qxc3 {[%emt 0:00:09]} Qf6 {[%emt 0:00:06]} 15. Qd3 {[%emt 0:09:24]} O-O {[%emt 0:06:23]} 16. h5 {[%emt 0:05:23]} Ne7 {[%emt 0:02:20][%mdl 8192] [#]} (16... Rad8 $1 $11 {and Black is okay.} 17. Bg5 Qxf3 18. Qxf3 (18. Bxf3 Rxd3 19. exd3 Bxf3 $11) 18... Bxf3 19. Bxf3 (19. Bxd8 Bxe2 20. Rfe1 Bxh5 $11) 19... f6) 17. Ng5 {[%emt 0:01:49] Weighted Error Value: White=0.16 (very precise) /Black=0.78} 1-0